bitfinex/quotes_SOLUSD_20250123
["timestamp","ask_amount","ask_price","bid_price","bid_amount"]
[1737593996259,31.47033841,255.11,255.1,0.0001]
[1737594004010,23.806884,255.11,255.1,0.0001]
[1737594004380,31.47033841,255.11,255.1,0.0001]
[1737594008600,23.776884,255.06,255.0,0.063]
[1737594008985,7.66345441,255.09,255.0,0.063]
[1737594009183,3.92,255.1,255.01,7.66345441]
[1737594009486,141.72,255.1,255.03,7.66345441]
[1737594009996,7.66345441,255.09,255.01,7.66345441]
[1737594010207,23.776884,255.08,255.01,7.66345441]
[1737594010788,23.776884,255.08,255.0,0.063]
[1737594010985,23.776884,255.06,255.0,0.063]
[1737594011588,151.52,255.1,255.0,0.063]
[1737594011589,7.66345441,255.09,255.0,0.063]
[1737594011817,3.9203,255.08,255.02,20.0]
[1737594011989,3.9203,255.08,255.0,0.063]
[1737594011990,3.9203,255.08,255.01,7.66345441]
[1737594012310,141.7202,255.09,255.03,7.66345441]
[1737594012910,23.776884,255.08,255.03,7.66345441]
[1737594013719,165.497184,255.08,255.04,20.0]
[1737594014726,161.576884,255.08,255.04,20.0]
[1737594014913,161.576884,255.08,255.03,7.66345441]
[1737594015991,165.497184,255.08,255.02,20.0]
[1737594016390,23.776884,255.06,255.0,0.063]
[1737594016598,7.66345441,255.07,255.0,20.063]
[1737594016599,23.776884,255.04,255.0,20.063]
[1737594017915,23.776884,255.04,255.0,0.063]
[1737594018217,165.497884,255.04,255.0,0.063]
[1737594019101,36.44033841,255.02,255.0,0.0001]
[1737594019306,23.776884,254.99,254.91,0.063]
[1737594019504,23.776884,254.96,254.91,0.063]
[1737594019705,7.66345441,254.93,254.91,0.063]
[1737594019901,23.776884,254.92,254.91,0.063]
[1737594020229,27.699584,254.92,254.91,0.063]
[1737594023809,27.699584,254.92,254.85,0.03]
[1737594023810,20.0,254.87,254.85,0.03]
[1737594024010,23.776884,254.85,254.84,0.063]
[1737594024693,28.776884,254.85,254.8,0.03]
[1737594024922,31.44033841,254.81,254.8,0.03]
[1737594025929,39.72246133,254.81,254.8,0.03]
[1737594026127,35.79806133,254.81,254.8,0.03]
[1737594026509,23.776884,254.81,254.8,0.03]
[1737594027001,12.02117733,254.83,254.8,0.03]
[1737594027525,23.776884,254.82,254.8,0.03]
[1737594028323,12.02117733,254.85,254.8,0.03]
[1737594028523,3.9233,254.89,254.8,0.03]
[1737594028524,12.02117733,254.87,254.8,0.03]
[1737594029113,23.776884,254.86,254.8,0.03]
[1737594030415,161.576884,254.86,254.8,0.03]
[1737594031725,161.576884,254.86,254.83,20.0]
[1737594031924,137.8,254.86,254.83,20.0]
[1737594032314,137.8,254.86,254.82,12.02117733]
[1737594032315,137.8,254.86,254.85,20.0]
[1737594032536,137.8,254.92,254.85,20.0]
[1737594032824,35.79806133,254.91,254.85,20.0]
[1737594033947,35.79806133,254.91,254.85,23.9237]
[1737594034432,35.79806133,254.91,254.82,20.0]
[1737594034612,35.79806133,254.91,254.83,20.0]
[1737594034926,35.79806133,254.91,254.84,20.0]
[1737594035931,7.5,254.98,254.85,3.9238]
[1737594035932,12.02117733,254.93,254.85,3.9238]
[1737594037228,0.03,254.91,254.85,3.9238]
[1737594038041,23.776884,254.88,254.83,20.0]
[1737594038938,12.02117733,254.89,254.83,20.0]
[1737594039124,12.05117733,254.91,254.85,20.0]
[1737594039831,23.776884,254.9,254.85,20.0]
[1737594040147,23.776884,254.9,254.85,23.9238]
[1737594041137,23.776884,254.9,254.8,0.03]
[1737594041138,23.776884,254.86,254.8,0.03]
[1737594041308,23.776884,254.81,254.8,0.03]
[1737594044810,149.82117733,254.84,254.8,0.03]
[1737594045006,137.8,254.84,254.8,0.03]
[1737594045446,137.8,254.84,254.81,20.0]
[1737594046114,12.02117733,254.9,254.83,20.0]
[1737594046313,12.02117733,254.9,254.84,5.5656]
[1737594046833,12.02117733,254.92,254.84,5.5656]
[1737594047046,12.02117733,254.92,254.84,17.58677733]
[1737594047418,23.806884,254.91,254.84,17.58677733]
[1737594048029,0.03,254.91,254.9,20.0]
[1737594048246,12.02117733,255.02,254.9,45.75197733]
[1737594048552,12.02117733,255.02,254.93,12.02117733]
[1737594048754,12.02117733,254.98,254.94,20.0]
[1737594048923,23.776884,254.97,254.94,20.0]
[1737594049658,23.776884,254.97,254.92,20.0]
[1737594050233,12.02117733,255.0,254.94,20.0]
[1737594051133,23.776884,254.99,254.94,20.0]
[1737594052554,23.776884,254.99,254.91,327.94407733]
[1737594052555,12.02117733,254.98,254.89,3.9232]
[1737594052742,12.02117733,254.98,254.85,12.02117733]
[1737594052743,23.776884,254.95,254.85,12.02117733]
[1737594053058,23.776884,254.95,254.87,12.02117733]
[1737594053551,12.02117733,254.94,254.85,12.02117733]
[1737594053755,12.02117733,254.94,254.84,6.0416]
[1737594053756,23.776884,254.91,254.84,6.0416]
[1737594054141,23.776884,254.89,254.84,4.4]
[1737594054542,23.776884,254.89,254.84,20.0]
[1737594055350,23.776884,254.89,254.81,12.02117733]
[1737594055655,15.94457733,254.88,254.8,0.03]
[1737594056166,12.02117733,254.84,254.8,0.03]
[1737594056460,23.776884,254.83,254.8,20.03]
[1737594056937,161.576884,254.83,254.8,0.03]
[1737594057145,23.776884,254.81,254.8,0.03]
[1737594058662,27.701284,254.81,254.8,0.03]
[1737594059665,23.776884,254.81,254.8,0.03]
[1737594061561,12.02117733,254.82,254.8,0.03]
[1737594061933,23.776884,254.81,254.8,0.03]
[1737594062646,161.576884,254.81,254.8,0.03]
[1737594063556,23.776884,254.81,254.8,0.03]
[1737594064154,35.79806133,254.81,254.8,0.03]
[1737594064357,23.776884,254.81,254.8,0.03]
[1737594068269,15.94547733,254.82,254.8,0.03]
[1737594068438,23.776884,254.81,254.8,0.03]
[1737594069052,12.02117733,254.85,254.8,0.03]
[1737594069259,20.1281,254.94,254.8,0.03]
[1737594069260,12.02117733,254.87,254.8,0.03]
[1737594069543,12.02117733,254.89,254.8,12.05117733]
[1737594070038,15.94437733,254.89,254.8,15.97577733]
[1737594070671,23.776884,254.88,254.8,15.97577733]
[1737594070967,23.776884,254.88,254.8,12.05117733]
[1737594071149,23.776884,254.86,254.8,0.03]
[1737594072667,23.776884,254.84,254.8,0.03]
[1737594075676,137.8,254.87,254.82,20.0]
[1737594076366,137.83,254.91,254.83,12.02117733]
[1737594076676,0.03,254.91,254.83,12.02117733]
[1737594077177,23.806884,254.91,254.84,3.924]
[1737594078160,0.03,254.91,254.89,13.57157733]
[1737594079182,0.03,254.91,254.9,3.9231]
[1737594079775,0.03,254.91,254.89,20.02507733]
[1737594080087,0.03,254.91,254.89,1.5504]
[1737594080386,0.03,254.91,254.9,20.0]
[1737594080949,0.03,254.91,254.89,1.5504]
[1737594081162,0.03,254.91,254.84,6.4535]
[1737594081383,23.806884,254.91,254.87,20.0]
[1737594081565,23.806884,254.91,254.84,6.4535]
[1737594081880,23.776884,254.87,254.83,1.5983]
[1737594082882,165.500484,254.87,254.8,0.03]
[1737594083177,23.776884,254.83,254.8,0.03]
[1737594083366,23.776884,254.81,254.8,0.03]
[1737594085355,27.701284,254.81,254.8,0.03]
[1737594093801,12.02117733,254.84,254.8,0.03]
[1737594094273,12.02117733,254.88,254.8,0.03]
[1737594094797,23.776884,254.87,254.8,0.03]
[1737594095098,12.02117733,254.88,254.8,0.03]
[1737594095395,23.776884,254.87,254.8,0.03]
[1737594095579,12.02117733,254.9,254.81,12.02117733]
[1737594095970,0.03,254.91,254.83,13.57527733]
[1737594096171,23.806884,254.91,254.86,20.0]
[1737594096492,0.03,254.91,254.85,12.02117733]
[1737594096699,0.03,254.91,254.88,20.0]
[1737594097494,0.03,254.91,254.85,12.02117733]
[1737594097872,0.03,254.91,254.88,20.0]
[1737594098680,0.03,254.91,254.89,15.94437733]
[1737594099212,0.03,254.91,254.87,3.9234]
[1737594099506,0.03,254.91,254.85,15.94487733]
[1737594102286,0.03,254.91,254.89,12.02117733]
[1737594102678,0.03,254.91,254.87,12.02117733]
[1737594103401,0.03,254.91,254.9,20.0]
[1737594103583,0.03,254.91,254.85,13.7333]
[1737594103584,0.03,254.91,254.89,12.02117733]
[1737594104191,0.03,254.91,254.86,3.9237]
[1737594104676,0.03,254.91,254.87,12.02117733]
[1737594105800,0.03,254.91,254.88,20.0]
[1737594106011,0.03,254.91,254.86,3.9237]
[1737594107302,0.03,254.91,254.88,20.0]
[1737594107680,0.03,254.91,254.86,3.9237]
[1737594108004,0.03,254.91,254.86,23.9237]
[1737594115418,0.03,254.91,254.89,12.02117733]
[1737594117113,0.03,254.91,254.9,3.9231]
[1737594119013,137.8,255.02,254.92,20.0]
[1737594119188,12.02117733,254.99,254.9,12.02117733]
[1737594119386,23.776884,255.01,254.88,15.94447733]
[1737594119387,23.776884,254.95,254.88,15.94447733]
[1737594119994,0.03,254.91,254.88,15.94447733]
[1737594121319,0.03,254.91,254.9,32.02117733]
[1737594122416,0.03,254.91,254.87,3.9864]
[1737594122913,0.03,254.91,254.89,20.0]
[1737594123223,0.03,254.91,254.9,20.0]
[1737594123819,0.03,254.91,254.9,32.02117733]
[1737594125910,0.03,254.91,254.9,38.62097733]
[1737594129931,0.03,254.91,254.9,42.54407733]
[1737594130832,0.03,254.91,254.9,43.13239457]
[1737594131015,12.02117733,255.07,254.96,20.0]
[1737594131221,12.02117733,255.07,254.99,12.02117733]
[1737594131638,161.576884,255.08,255.01,12.02117733]
[1737594132010,161.576884,255.08,254.99,12.02117733]
[1737594132233,0.03,255.07,254.99,15.94277733]
[1737594132532,23.806884,255.07,254.99,15.94277733]
[1737594132741,23.806884,255.07,255.01,12.02117733]
[1737594135044,23.806884,255.07,255.03,12.02117733]
[1737594136941,0.03,255.07,255.03,12.02117733]
[1737594143749,0.03,255.07,255.06,20.0]
[1737594143924,0.03,255.1,255.06,20.0]
[1737594143925,0.03,255.1,255.06,60.59870383]
[1737594144126,0.03,255.1,255.09,7.67222796]
[1737594144325,0.03,255.1,255.09,12.18019792]
[1737594145046,0.03,255.11,255.09,12.18019792]
[1737594145726,0.03,255.19,255.13,50.0]
[1737594146041,0.03,255.19,255.17,1.6288]
[1737594146244,0.03,255.19,255.18,47.86752936]
[1737594147023,0.03,255.19,255.18,359.86752936]
[1737594147229,0.03,255.19,255.18,366.7799398]
[1737594147555,0.03,255.19,255.18,396.7799398]
[1737594147755,0.03,255.19,255.18,383.95403171]
[1737594147956,0.03,255.19,255.18,359.48842283]
[1737594148155,0.03,255.19,255.18,392.88440888]
[1737594148342,0.03,255.19,255.18,404.85001776]
[1737594148549,0.03,255.23,255.22,35.0]
[1737594148724,0.03,255.23,255.22,51.91306071]
[1737594149129,0.063,255.26,255.24,5.0]
[1737594149329,0.063,255.26,255.24,17.55302166]
[1737594149954,0.063,255.26,255.25,50.0]
[1737594150140,0.063,255.26,255.25,57.5]
[1737594150340,0.063,255.26,255.25,61.4177]
[1737594150653,0.063,255.36,255.3,5.0]
[1737594150851,0.063,255.36,255.3,29.51850931]
[1737594151148,0.063,255.36,255.34,20.0]
[1737594151341,0.063,255.36,255.35,17.55280485]
[1737594151859,0.063,255.36,255.35,359.55280485]
[1737594152164,0.063,255.36,255.35,358.96560888]
[1737594152330,0.063,255.36,255.35,370.38170888]
[1737594152659,0.063,255.41,255.38,55.0]
[1737594152955,0.063,255.41,255.4,11.96560888]
[1737594153653,0.063,255.41,255.4,46.96560888]
[1737594154454,0.063,255.41,255.4,50.88100888]
[1737594154861,0.063,255.41,255.4,15.88100888]
[1737594155036,8.1955,255.55,255.43,20.0]
[1737594155237,23.776884,255.52,255.47,11.96560888]
[1737594155639,12.1086,255.55,255.47,11.96560888]
[1737594155954,11.96560888,255.61,255.53,11.96560888]
[1737594156357,3.912,255.62,255.55,11.96560888]
[1737594156666,15.87700888,255.66,255.57,11.96560888]
[1737594156830,3.9111,255.68,255.64,11.96560888]
[1737594157035,3.9111,255.68,255.66,11.96560888]
[1737594157337,3.9109,255.7,255.66,11.96560888]
[1737594157559,3.9106,255.72,255.66,11.96560888]
[1737594158134,18.45610888,255.75,255.66,11.96560888]
[1737594158334,3.9102,255.74,255.66,11.96560888]
[1737594158551,11.96560888,255.75,255.66,11.96560888]
[1737594158756,11.96560888,255.79,255.66,15.87700888]
[1737594158943,23.776884,255.78,255.66,11.96560888]
[1737594159148,23.776884,255.74,255.66,11.96560888]
[1737594159764,23.776884,255.72,255.64,11.96560888]
[1737594160164,25.65080888,255.75,255.64,11.96560888]
[1737594160465,25.65080888,255.75,255.66,11.96560888]
[1737594160851,11.99560888,255.67,255.58,11.96560888]
[1737594161660,0.03,255.67,255.58,11.96560888]
[1737594162062,23.806884,255.67,255.58,11.96560888]
[1737594162266,23.806884,255.67,255.6,11.96560888]
[1737594162662,137.8,255.66,255.56,11.96560888]
[1737594162959,11.96560888,255.63,255.54,11.96560888]
[1737594163344,137.8,255.66,255.56,11.96560888]
[1737594163345,11.96560888,255.65,255.56,11.96560888]
[1737594163853,23.776884,255.64,255.56,11.96560888]
[1737594164447,3.9119,255.63,255.56,11.96560888]
[1737594166662,3.9119,255.63,255.58,11.96560888]
[1737594167764,23.776884,255.62,255.54,11.96560888]
[1737594168075,23.776884,255.62,255.47,11.96560888]
[1737594168076,23.776884,255.55,255.47,11.96560888]
[1737594168377,23.776884,255.53,255.5,20.0]
[1737594168749,23.776884,255.53,255.47,11.96560888]
[1737594169159,3.9132,255.54,255.5,20.0]
[1737594169352,23.776884,255.53,255.5,20.0]
[1737594169774,23.776884,255.53,255.47,11.96560888]
[1737594170260,23.776884,255.55,255.47,11.96560888]
[1737594170455,27.689984,255.55,255.47,11.96560888]
[1737594170964,11.96560888,255.65,255.56,20.0]
[1737594171148,15.87680888,255.68,255.59,11.96560888]
[1737594171470,23.806884,255.67,255.59,11.96560888]
[1737594171654,3.9413,255.67,255.59,11.96560888]
[1737594171853,3.9413,255.67,255.61,11.96560888]
[1737594171854,0.03,255.67,255.61,11.96560888]
[1737594172849,0.03,255.67,255.61,20.21770888]
[1737594173167,0.03,255.67,255.61,16.30560888]
[1737594173659,0.03,255.67,255.61,23.43438979]
[1737594174166,0.03,255.67,255.61,335.43438979]
[1737594174671,0.03,255.67,255.61,339.34648979]
[1737594176469,0.03,255.67,255.62,0.58664518]
[1737594177344,0.03,255.67,255.61,27.34648979]
[1737594178679,0.03,255.67,255.61,23.43438979]
[1737594179972,0.03,255.67,255.61,27.34648979]
[1737594180170,0.03,255.67,255.61,339.93311574]
[1737594180367,0.03,255.67,255.61,23.43438979]
[1737594180956,23.806884,255.67,255.59,19.09438979]
[1737594182668,3.9114,255.66,255.59,19.09438979]
[1737594182976,23.776884,255.65,255.59,19.09438979]
[1737594183675,3.9116,255.65,255.59,19.09438979]
[1737594184571,23.806884,255.67,255.59,19.09438979]
[1737594184780,27.718284,255.67,255.59,19.09438979]
[1737594185260,0.03,255.67,255.59,19.09438979]
[1737594185461,23.776884,255.65,255.59,19.09438979]
[1737594187072,3.9116,255.65,255.59,19.09438979]
[1737594187466,0.03,255.67,255.59,19.09438979]
[1737594187467,3.9414,255.67,255.59,19.09438979]
[1737594187660,0.03,255.67,255.59,19.09438979]
[1737594188284,23.776884,255.65,255.59,19.09438979]
[1737594188491,23.776884,255.65,255.61,19.09438979]
[1737594188863,0.03,255.67,255.61,19.09438979]
[1737594189062,0.03,255.67,255.61,23.00648979]
[1737594189687,0.03,255.67,255.62,0.58670788]
[1737594191389,0.03,255.67,255.61,23.00648979]
[1737594192279,0.03,255.67,255.61,335.00648979]
[1737594192474,0.03,255.67,255.61,23.00648979]
[1737594193759,0.03,255.67,255.61,19.09438979]
[1737594194964,0.03,255.67,255.59,19.09438979]
[1737594195170,23.806884,255.67,255.62,20.0]
[1737594195368,0.03,255.67,255.62,20.0]
[1737594195772,0.03,255.67,255.62,11.9323868]
[1737594206383,0.03,255.67,255.62,323.9323868]
[1737594206791,8.076,255.77,255.65,20.0]
[1737594206988,11.9323868,255.82,255.74,11.9323868]
[1737594207306,15.8414868,255.82,255.74,11.9323868]
[1737594208310,23.776884,255.81,255.74,11.9323868]
[1737594209299,3.9092,255.81,255.74,11.9323868]
[1737594209505,3.9092,255.81,255.72,11.9323868]
[1737594210812,3.9092,255.81,255.75,20.0]
[1737594212213,3.9092,255.81,255.74,31.9323868]
[1737594213197,3.9092,255.81,255.72,31.9323868]
[1737594213397,23.776884,255.79,255.73,20.0]
[1737594214810,3.9096,255.78,255.73,20.0]
[1737594215511,11.9323868,255.76,255.68,11.9323868]
[1737594215714,23.776884,255.73,255.67,0.063]
[1737594215898,149.7323868,255.76,255.67,11.9953868]
[1737594216425,137.8,255.76,255.73,11.9323868]
[1737594216716,0.03,255.81,255.75,11.9323868]
[1737594218092,35.7392708,255.81,255.74,20.0]
[1737594219306,23.776884,255.79,255.71,11.9323868]
[1737594219511,23.776884,255.79,255.71,323.9323868]
[1737594219712,35.7092708,255.79,255.72,20.0]
[1737594221403,35.7092708,255.79,255.69,11.9323868]
[1737594221404,0.03,255.81,255.73,11.9323868]
[1737594221707,3.9391,255.81,255.73,11.9323868]
[1737594222712,3.9391,255.81,255.76,312.0]
[1737594223398,3.9391,255.81,255.73,11.9323868]
[1737594224117,11.9323868,255.79,255.69,11.9323868]
[1737594224423,11.9323868,255.79,255.72,20.0]
[1737594224801,3.9096,255.78,255.72,20.0]
[1737594225122,23.776884,255.77,255.72,20.0]
[1737594225318,23.776884,255.77,255.67,11.9953868]
[1737594225319,35.7092708,255.77,255.67,11.9953868]
[1737594225906,23.776884,255.77,255.69,11.9323868]
[1737594226202,23.776884,255.77,255.71,11.9323868]
[1737594226512,23.776884,255.77,255.71,323.9323868]
[1737594227021,3.9093,255.8,255.71,15.8429868]
[1737594227201,0.03,255.81,255.76,20.0]
[1737594228717,23.806884,255.81,255.76,20.0]
[1737594229809,3.9392,255.81,255.76,20.0]
[1737594230119,3.9392,255.81,255.76,332.0]
[1737594230826,0.03,255.81,255.76,20.0]
[1737594231328,0.03,255.81,255.77,11.9323868]
[1737594232933,0.03,255.81,255.75,11.9323868]
[1737594233124,11.9323868,255.79,255.69,41.9323868]
[1737594233313,23.776884,255.76,255.67,11.9953868]
[1737594233911,23.776884,255.76,255.67,323.9953868]
[1737594234108,23.776884,255.76,255.7,20.0]
[1737594234320,3.91,255.75,255.7,20.0]
[1737594234528,23.776884,255.74,255.7,20.0]
[1737594235429,11.9323868,255.77,255.7,20.0]
[1737594235430,23.776884,255.76,255.7,20.0]
[1737594235735,23.776884,255.74,255.68,20.0]
[1737594237412,23.776884,255.72,255.67,0.063]
[1737594237617,23.776884,255.68,255.67,0.063]
[1737594239144,23.776884,255.7,255.67,0.063]
[1737594240311,139.3207,255.76,255.7,20.0]
[1737594241613,139.3207,255.76,255.68,3.0]
[1737594241938,23.776884,255.75,255.68,6.9111]
[1737594242618,23.776884,255.75,255.7,20.0]
[1737594243911,23.776884,255.73,255.68,3.0]
[1737594244115,23.776884,255.71,255.68,3.0]
[1737594244538,23.776884,255.73,255.68,3.0]
[1737594245616,23.776884,255.71,255.68,3.0]
[1737594246122,23.776884,255.69,255.68,3.0]
[1737594249232,137.8,255.71,255.68,3.0]
[1737594249621,0.03,255.7,255.68,3.0]
[1737594249842,0.03,255.7,255.68,6.9111]
[1737594250033,0.03,255.7,255.68,3.0]
[1737594250348,0.03,255.7,255.69,4.0]
[1737594252054,0.03,255.7,255.69,316.0]
[1737594252551,0.03,255.7,255.69,4.0]
[1737594255353,35.7392708,255.7,255.69,4.0]
[1737594256444,39.6500708,255.7,255.69,4.0]
[1737594256623,122.7500708,255.7,255.69,4.0]
[1737594257121,23.776884,255.69,255.68,3.0]
[1737594258953,27.687984,255.68,255.67,0.063]
[1737594259128,39.6203708,255.68,255.67,0.063]
[1737594260060,3.9109,255.7,255.67,0.063]
[1737594260433,23.776884,255.69,255.67,0.063]
[1737594261658,23.776884,255.69,255.68,0.063]
[1737594263764,0.03,255.7,255.68,0.063]
[1737594267147,0.03,255.7,255.69,20.0]
[1737594268266,0.03,255.7,255.68,11.9953868]
[1737594268468,0.03,255.7,255.68,0.063]
[1737594268965,0.03,255.7,255.68,312.063]
[1737594270172,0.03,255.7,255.68,0.063]
[1737594273175,0.03,255.7,255.68,312.063]
[1737594274071,0.03,255.7,255.68,0.063]
[1737594275889,0.03,255.7,255.69,20.0]
[1737594276987,0.03,255.7,255.69,332.0]
[1737594279881,0.03,255.7,255.69,20.0]
[1737594280089,0.03,255.7,255.69,7.7494]
[1737594280988,0.03,255.7,255.69,1.5678]
[1737594281895,0.03,255.7,255.69,21.5678]
[1737594282302,0.03,255.7,255.68,0.063]
[1737594285201,0.03,255.7,255.68,15.90263521]
[1737594286979,0.03,255.7,255.69,312.0]
[1737594288603,0.03,255.7,255.68,11.99163521]
[1737594291606,0.03,255.7,255.68,323.99163521]
[1737594292403,0.03,255.7,255.68,0.063]
[1737594292583,23.806884,255.7,255.68,0.063]
[1737594294204,27.717684,255.7,255.68,0.063]
[1737594295178,0.03,255.7,255.68,0.063]
[1737594297290,35.70551921,255.69,255.68,0.063]
[1737594297804,31.41618234,255.69,255.68,0.063]
[1737594298294,35.32708234,255.69,255.68,0.063]
[1737594308220,35.35708234,255.69,255.68,0.063]
[1737594309602,47.85708234,255.69,255.68,0.0001]
[1737594309918,35.35708234,255.69,255.68,0.0001]
[1737594310214,40.35708234,255.69,255.68,0.0001]
[1737594312827,16.58019834,255.69,255.68,0.0001]
[1737594313122,0.03,255.69,255.68,0.0001]
[1737594315910,0.03,255.69,255.68,312.0001]
[1737594319605,0.03,255.69,255.68,0.0001]
[1737594322747,0.03,255.69,255.68,312.0001]
[1737594325642,0.03,255.69,255.68,0.0001]
[1737594328623,0.03,255.69,255.68,312.0001]
[1737594334154,0.03,255.69,255.68,315.9112]
[1737594335355,0.03,255.69,255.68,323.4112]
[1737594335850,0.03,255.78,255.71,20.0]
[1737594336048,0.03,255.78,255.75,20.0]
[1737594338655,0.03,255.78,255.75,23.9099]
[1737594338856,0.03,255.78,255.77,20.0]
[1737594339158,0.03,255.78,255.77,332.0]
[1737594339856,0.03,255.78,255.73,3.9102]
[1737594340537,0.03,255.78,255.75,20.0]
[1737594341463,23.776884,255.76,255.68,0.0001]
[1737594341764,23.776884,255.76,255.69,20.0]
[1737594342263,23.776884,255.76,255.68,0.0001]
[1737594342427,23.776884,255.76,255.68,7.63939834]
[1737594342629,3.9396,255.78,255.71,20.0]
[1737594342630,0.03,255.78,255.71,20.0]
[1737594342831,0.03,255.78,255.73,332.0]
[1737594343268,23.806884,255.78,255.73,332.0]
[1737594343830,23.806884,255.78,255.73,20.0]
[1737594346147,27.716484,255.78,255.73,20.0]
[1737594346862,27.716484,255.78,255.73,312.0]
[1737594347656,23.806884,255.78,255.73,312.0]
[1737594347958,23.806884,255.78,255.73,315.9103]
[1737594348657,0.03,255.78,255.73,23.9103]
[1737594350677,23.806884,255.78,255.73,20.0]
[1737594351476,23.806884,255.78,255.73,332.0]
[1737594352649,0.03,255.78,255.75,20.0]
[1737594353352,0.03,255.78,255.77,9.29129834]
[1737594353777,0.03,255.81,255.8,20.0]
[1737594354076,0.03,255.81,255.8,27.63929834]
[1737594354779,0.03,255.81,255.8,31.54859834]
[1737594355777,0.03,255.81,255.8,343.54859834]
[1737594356484,0.03,255.81,255.8,339.63929834]
[1737594358178,0.03,255.81,255.8,20.0]
[1737594358371,0.03,255.81,255.77,1.652]
[1737594358569,0.03,255.81,255.79,20.0]
[1737594358982,137.8,255.79,255.72,7.63929834]
[1737594360361,23.776884,255.78,255.72,7.63929834]
[1737594360558,31.41618234,255.78,255.73,20.0]
[1737594360758,31.41618234,255.78,255.7,0.063]
[1737594361167,23.776884,255.78,255.7,319.70229834]
[1737594361680,23.776884,255.78,255.7,312.063]
[1737594361681,31.41618234,255.78,255.7,312.063]
[1737594362381,23.776884,255.73,255.7,0.063]
[1737594362581,23.776884,255.71,255.7,0.063]
[1737594363755,149.34979834,255.72,255.7,0.063]
[1737594363756,141.7105,255.72,255.7,0.063]
[1737594363962,137.8,255.72,255.7,0.063]
[1737594364691,137.8,255.71,255.7,0.063]
[1737594364869,23.776884,255.71,255.7,0.063]
[1737594365689,23.776884,255.71,255.67,0.0001]
[1737594365690,7.63929834,255.69,255.67,0.0001]
[1737594366597,23.776884,255.68,255.67,0.0001]
[1737594366780,27.687984,255.68,255.67,0.0001]
[1737594367169,7.63929834,255.69,255.67,0.0001]
[1737594367993,23.776884,255.68,255.67,0.0001]
[1737594374386,31.276884,255.68,255.67,0.0001]
[1737594377090,23.776884,255.68,255.67,0.0001]
[1737594379186,11.55029834,255.69,255.67,0.0001]
[1737594380299,23.776884,255.68,255.67,0.0001]
[1737594380701,23.806884,255.68,255.67,0.0001]
[1737594381188,36.306884,255.68,255.67,0.0001]
[1737594382698,43.984484,255.68,255.67,0.0001]
[1737594382994,5.0,255.61,255.5,7.63929834]
[1737594383313,23.776884,255.63,255.46,6.0506]
[1737594383314,23.776884,255.56,255.47,7.63929834]
[1737594383488,23.776884,255.56,255.47,11.55359834]
[1737594383688,23.776884,255.56,255.5,20.0]
[1737594384193,23.776884,255.54,255.5,312.0]
[1737594385181,27.689784,255.56,255.48,1.5089]
[1737594386083,137.8,255.48,255.41,0.063]
[1737594386290,5.0,255.51,255.41,0.063]
[1737594386291,31.41618234,255.45,255.41,0.063]
[1737594387210,3.9149,255.43,255.41,0.063]
[1737594387417,11.55419834,255.43,255.41,0.063]
[1737594387720,35.33108234,255.43,255.41,0.063]
[1737594388803,31.41618234,255.43,255.41,0.063]
[1737594388995,23.776884,255.43,255.41,0.063]